fUST/lending_fUST_20250207
["ID","MTS","AMOUNT","RATE_DAILY","PERIOD"]
[351957175,1738861839299,-787.01,0.00013698,2]
[351957179,1738861839311,-892.16,0.00013698,2]
[351957181,1738861839320,-2615.86,0.00013698,2]
[351957182,1738861839330,-500.0,0.00013698,2]
[351957185,1738861839340,-500.0,0.00013698,2]
[351957187,1738861839349,-2348.62,0.00013698,2]
[351957188,1738861839359,-179.336968,0.00013699,2]
[351957191,1738861839368,-240.828861,0.00013699,2]
[351957193,1738861839377,-755.15,0.00013835,2]
[351957195,1738861839387,-500.0,0.00013835,2]
[351957199,1738861839405,-536.44,0.00013835,2]
[351957202,1738861839416,-500.0,0.00013835,2]
[351957204,1738861839426,-550.04,0.00013835,2]
[351957206,1738861839436,-500.0,0.00013835,2]
[351957208,1738861839445,-500.0,0.00013835,2]
[351957210,1738861839455,-704.62,0.00013835,2]
[351957212,1738861839465,-500.0,0.00013835,2]
[351957214,1738861839475,-500.0,0.00013835,2]
[351957216,1738861839485,-395.89823951,0.00013835,2]
[351957218,1738861839495,-500.0,0.00013835,2]
[351957220,1738861839506,-583.96,0.00013835,2]
[351957222,1738861839516,-500.0,0.00013835,2]
[351957224,1738861839526,-500.0,0.00013835,2]
[351957226,1738861839535,-571.87,0.00013835,2]
[351957228,1738861839546,-500.0,0.00013835,2]
[351957230,1738861839556,-462.59,0.00013835,2]
[351957232,1738861839565,-500.0,0.00013835,2]
[351957234,1738861839575,-1044.21,0.00013835,2]
[351957236,1738861839585,-817.62,0.00013835,2]
[351957238,1738861839595,-658.86,0.00013835,2]
[351957240,1738861839606,-1065.84,0.00013835,2]
[351957242,1738861839616,-500.0,0.00013835,2]
[351957271,1738861839867,-500.0,0.00013835,2]
[351957273,1738861839877,-1000.32,0.00013835,2]
[351957275,1738861839887,-500.0,0.00013835,2]
[351957277,1738861839897,-500.0,0.00013835,2]
[351957279,1738861839907,-775.27,0.00013835,2]
[351957281,1738861839917,-500.0,0.00013835,2]
[351957283,1738861839927,-500.0,0.00013835,2]
[351957285,1738861839937,-500.0,0.00013835,2]
[351957287,1738861839947,-556.9,0.00013835,2]
[351957289,1738861839956,-937.72,0.00013835,2]
[351957291,1738861839965,-500.0,0.00013835,2]
[351957293,1738861839975,-1200.62,0.00013835,2]
[351957295,1738861839985,-599.28,0.00013835,2]
[351957297,1738861839995,-727.39,0.00013835,2]
[351957300,1738861840009,-500.0,0.00013835,2]
[351957302,1738861840017,-500.0,0.00013835,2]
[351957304,1738861840027,-539.42,0.00013835,2]
[351957306,1738861840036,-500.0,0.00013835,2]
[351957308,1738861840045,-500.0,0.00013835,2]
[351957310,1738861840055,-500.0,0.00013835,2]
[351957312,1738861840065,-3060.32,0.00013835,2]
[351957314,1738861840074,-1332.48,0.00013835,2]
[351957316,1738861840084,-553.85,0.00013835,2]
[351957318,1738861840094,-825.04,0.00013835,2]
[351957320,1738861840103,-500.0,0.00013835,2]
[351957322,1738861840114,-892.32,0.00013835,2]
[351957324,1738861840123,-974.39,0.00013835,2]
[351957326,1738861840132,-500.0,0.00013835,2]
[351957328,1738861840141,-500.0,0.00013835,2]
[351957330,1738861840151,-2278.89,0.00013835,2]
[351957332,1738861840161,-500.0,0.00013835,2]
[351957334,1738861840171,-934.64,0.00013835,2]
[351957336,1738861840180,-500.0,0.00013835,2]
[351957338,1738861840190,-828.04,0.00013835,2]
[351957340,1738861840200,-1082.92,0.00013835,2]
[351957343,1738861840210,-1033.26,0.00013835,2]
[351957344,1738861840219,-500.0,0.00013835,2]
[351957346,1738861840228,-518.88,0.00013835,2]
[351957348,1738861840237,-4638.91,0.00013835,2]
[351957350,1738861840247,-27135.38,0.00013835,2]
[351957352,1738861840256,-13108.84,0.00013835,2]
[351957354,1738861840269,-1021.12,0.00013835,2]
[351957356,1738861840278,-500.0,0.00013835,2]
[351957358,1738861840288,-3170.82,0.00013835,2]
[351957361,1738861840298,-504.08,0.00013835,2]
[351957362,1738861840307,-1491.4,0.00013835,2]
[351957365,1738861840317,-1154.09,0.00013835,2]
[351957367,1738861840327,-1654.5,0.00013835,2]
[351957369,1738861840336,-500.0,0.00013835,2]
[351957371,1738861840348,-1115.28,0.00013835,2]
[351957373,1738861840359,-1583.48,0.00013835,2]
[351957375,1738861840368,-773.59,0.00013835,2]
[351957377,1738861840377,-615.24,0.00013835,2]
[351957379,1738861840387,-500.0,0.00013835,2]
[351957381,1738861840397,-500.0,0.00013835,2]
[351957383,1738861840406,-1025.7,0.00013835,2]
[351957385,1738861840416,-582.84,0.00013835,2]
[351957387,1738861840427,-1255.49,0.00013835,2]
[351957389,1738861840437,-436.70882952,0.00013835,2]
[351957391,1738861840448,-500.0,0.00013835,2]
[351957393,1738861840457,-2719.61,0.00013835,2]
[351957395,1738861840468,-663.72,0.00013835,2]
[351957397,1738861840477,-1660.18,0.00013835,2]
[351957399,1738861840487,-2325.2,0.00013835,2]
[351957401,1738861840496,-507.86,0.00013835,2]
[351957403,1738861840506,-500.0,0.00013835,2]
[351957405,1738861840516,-1369.28,0.00013835,2]
[351957407,1738861840525,-523.14440991,0.00013835,2]
[351957409,1738861840535,-6565.96,0.00013835,2]
[351957411,1738861840544,-643.63,0.00013835,2]
[351957414,1738861840554,-1567.27,0.00013835,2]
[351957415,1738861840563,-500.0,0.00013835,2]
[351957418,1738861840573,-500.0,0.00013835,2]
[351957420,1738861840582,-500.0,0.00013835,2]
[351957422,1738861840592,-787.01,0.00013835,2]
[351957424,1738861840602,-892.16,0.00013835,2]
[351957425,1738861840611,-2615.86,0.00013835,2]
[351957427,1738861840621,-500.0,0.00013835,2]
[351957429,1738861840631,-2348.62,0.00013835,2]
[351957431,1738861840640,-215.7447597,0.00013863,2]
[351957433,1738861840650,-215.7447597,0.00013863,2]
[351957435,1738861840659,-306.0,0.00013863,2]
[351957437,1738861840669,-431.4895194,0.00013863,2]
[351957440,1738861840679,-309.0698992,0.00013863,2]
[351957442,1738861840689,-755.15,0.00013972,2]
[351957444,1738861840699,-500.0,0.00013972,2]
[351957446,1738861840708,-536.44,0.00013972,2]
[351957448,1738861840717,-500.0,0.00013972,2]
[351957450,1738861840729,-550.04,0.00013972,2]
[351957452,1738861840739,-500.0,0.00013972,2]
[351957454,1738861840749,-500.0,0.00013972,2]
[351957456,1738861840759,-704.62,0.00013972,2]
[351957458,1738861840769,-500.0,0.00013972,2]
[351957460,1738861840778,-500.0,0.00013972,2]
[351957462,1738861840787,-500.0,0.00013972,2]
[351957464,1738861840797,-583.96,0.00013972,2]
[351957466,1738861840806,-500.0,0.00013972,2]
[351957468,1738861840815,-500.0,0.00013972,2]
[351957470,1738861840831,-571.87,0.00013972,2]
[351957472,1738861840842,-500.0,0.00013972,2]
[351957474,1738861840851,-500.0,0.00013972,2]
[351957476,1738861840860,-1044.21,0.00013972,2]
[351957478,1738861840871,-817.62,0.00013972,2]
[351957480,1738861840880,-658.86,0.00013972,2]
[351957482,1738861840889,-1065.84,0.00013972,2]
[351957484,1738861840899,-500.0,0.00013972,2]
[351957486,1738861840909,-500.0,0.00013972,2]
[351957488,1738861840918,-1000.32,0.00013972,2]
[351957490,1738861840928,-500.0,0.00013972,2]
[351957492,1738861840938,-500.0,0.00013972,2]
[351957494,1738861840947,-775.27,0.00013972,2]
[351957496,1738861840956,-500.0,0.00013972,2]
[351957498,1738861840966,-500.0,0.00013972,2]
[351957500,1738861840976,-500.0,0.00013972,2]
[351957502,1738861840985,-556.9,0.00013972,2]
[351957504,1738861840994,-937.72,0.00013972,2]
[351957506,1738861841004,-500.0,0.00013972,2]
[351957508,1738861841013,-1200.62,0.00013972,2]
[351957510,1738861841022,-599.28,0.00013972,2]
[351957512,1738861841032,-727.39,0.00013972,2]
[351957514,1738861841041,-500.0,0.00013972,2]
[351957516,1738861841050,-500.0,0.00013972,2]
[351957518,1738861841060,-539.42,0.00013972,2]
[351957521,1738861841070,-500.0,0.00013972,2]
[351957523,1738861841080,-500.0,0.00013972,2]
[351957524,1738861841089,-500.0,0.00013972,2]
[351957527,1738861841098,-3060.32,0.00013972,2]
[351957529,1738861841108,-1332.48,0.00013972,2]
[351957530,1738861841117,-553.85,0.00013972,2]
[351957533,1738861841127,-825.04,0.00013972,2]
[351957534,1738861841136,-500.0,0.00013972,2]
[351957536,1738861841149,-892.32,0.00013972,2]
[351957538,1738861841159,-974.39,0.00013972,2]
[351957539,1738861841168,-500.0,0.00013972,2]
[351957540,1738861841178,-500.0,0.00013972,2]
[351957541,1738861841188,-2278.89,0.00013972,2]
[351957542,1738861841198,-500.0,0.00013972,2]
[351957543,1738861841207,-934.64,0.00013972,2]
[351957544,1738861841217,-500.0,0.00013972,2]
[351957545,1738861841227,-828.04,0.00013972,2]
[351957546,1738861841237,-1082.92,0.00013972,2]
[351957547,1738861841248,-1033.26,0.00013972,2]
[351957548,1738861841258,-500.0,0.00013972,2]
[351957549,1738861841270,-518.88,0.00013972,2]
[351957550,1738861841279,-4638.91,0.00013972,2]
[351957551,1738861841289,-27135.38,0.00013972,2]
[351957552,1738861841299,-13108.84,0.00013972,2]
[351957553,1738861841308,-1021.12,0.00013972,2]
[351957554,1738861841318,-500.0,0.00013972,2]
[351957555,1738861841328,-3170.82,0.00013972,2]
[351957556,1738861841338,-504.08,0.00013972,2]
[351957557,1738861841351,-1491.4,0.00013972,2]
[351957559,1738861841361,-1154.09,0.00013972,2]
[351957561,1738861841372,-1654.5,0.00013972,2]
[351957563,1738861841381,-500.0,0.00013972,2]
[351957565,1738861841391,-1115.28,0.00013972,2]
[351957567,1738861841400,-1583.48,0.00013972,2]
[351957569,1738861841410,-773.59,0.00013972,2]
[351957571,1738861841420,-615.24,0.00013972,2]
[351957573,1738861841430,-500.0,0.00013972,2]
[351957575,1738861841440,-500.0,0.00013972,2]
[351957577,1738861841451,-1025.7,0.00013972,2]
[351957579,1738861841460,-582.84,0.00013972,2]
[351957581,1738861841470,-1255.49,0.00013972,2]
[351957583,1738861841480,-500.0,0.00013972,2]
[351957586,1738861841490,-2719.61,0.00013972,2]
[351957587,1738861841500,-663.72,0.00013972,2]
[351957589,1738861841510,-1660.18,0.00013972,2]
[351957592,1738861841520,-2325.2,0.00013972,2]
[351957594,1738861841531,-507.86,0.00013972,2]
[351957596,1738861841540,-500.0,0.00013972,2]
[351957598,1738861841550,-1369.28,0.00013972,2]
[351957600,1738861841559,-6381.52328145,0.00013972,2]
[351957602,1738861841577,-184.43671855,0.00013972,2]
[351957604,1738861841586,-643.63,0.00013972,2]
[351957606,1738861841596,-1567.27,0.00013972,2]
[351957609,1738861841606,-500.0,0.00013972,2]
[351957611,1738861841616,-500.0,0.00013972,2]
[351957613,1738861841625,-787.01,0.00013972,2]
[351957615,1738861841635,-892.16,0.00013972,2]
[351957617,1738861841644,-2615.86,0.00013972,2]
[351957619,1738861841656,-500.0,0.00013972,2]
[351957621,1738861841669,-2348.62,0.00013972,2]
[351957623,1738861841682,-400.0,0.00013973,2]
[351957626,1738861841696,-13262.49839917,0.00013983,2]
[351957628,1738861841708,-155.0,0.00014105,2]
[351957631,1738861841721,-155.0,0.00014105,2]
[351957633,1738861841731,-155.0,0.00014105,2]
[351957635,1738861841742,-155.0,0.00014105,2]
[351957637,1738861841754,-155.0,0.00014105,2]
[351957640,1738861841767,-155.0,0.00014105,2]
[351957642,1738861841779,-155.0,0.00014105,2]
[351957644,1738861841790,-159.59,0.00014105,2]
[351957646,1738861841803,-155.0,0.00014105,2]
[351957649,1738861841815,-155.0,0.00014105,2]
[351957651,1738861841828,-155.0,0.00014105,2]
[351957653,1738861841839,-155.0,0.00014105,2]
[351957655,1738861841851,-155.0,0.00014105,2]
[351957658,1738861841864,-155.0,0.00014105,2]
[351957660,1738861841876,-160.89,0.00014105,2]
[351957662,1738861841887,-500.0,0.00014108,2]
[351957664,1738861841899,-194.39459513,0.00014108,2]
[351957666,1738861841910,-755.15,0.00014109,2]
[351957668,1738861841921,-500.0,0.00014109,2]
[351957671,1738861841934,-536.44,0.00014109,2]
[351957673,1738861841944,-594.49639698,0.00014109,2]
[351957675,1738861841956,-550.04,0.00014109,2]
[351957677,1738861841968,-358.398,0.00014109,2]
[351957680,1738861841980,-500.0,0.00014109,2]
[351957682,1738861841991,-500.0,0.00014109,2]
[351957683,1738861842002,-704.62,0.00014109,2]
[351957686,1738861842013,-500.0,0.00014109,2]
[351957688,1738861842023,-500.0,0.00014109,2]
[351957689,1738861842033,-500.0,0.00014109,2]
[351957692,1738861842045,-583.96,0.00014109,2]
[351957694,1738861842056,-500.0,0.00014109,2]
[351957696,1738861842068,-500.0,0.00014109,2]
[351957698,1738861842080,-571.87,0.00014109,2]
[351957701,1738861842092,-500.0,0.00014109,2]
[351957703,1738861842104,-500.0,0.00014109,2]
[351957705,1738861842116,-1044.21,0.00014109,2]
[351957707,1738861842128,-817.62,0.00014109,2]
[351957709,1738861842141,-658.86,0.00014109,2]
[351957712,1738861842153,-1065.84,0.00014109,2]
[351957714,1738861842165,-500.0,0.00014109,2]
[351957716,1738861842177,-500.0,0.00014109,2]
[351957718,1738861842189,-1000.32,0.00014109,2]
[351957721,1738861842201,-500.0,0.00014109,2]
[351957723,1738861842212,-500.0,0.00014109,2]
[351957725,1738861842223,-775.27,0.00014109,2]
[351957727,1738861842234,-500.0,0.00014109,2]
[351957729,1738861842244,-500.0,0.00014109,2]
[351957731,1738861842255,-500.0,0.00014109,2]
[351957733,1738861842267,-556.9,0.00014109,2]
[351957736,1738861842280,-937.72,0.00014109,2]
[351957738,1738861842293,-500.0,0.00014109,2]
[351957740,1738861842307,-1200.62,0.00014109,2]
[351957743,1738861842319,-599.28,0.00014109,2]
[351957746,1738861842329,-727.39,0.00014109,2]
[351957749,1738861842340,-500.0,0.00014109,2]
[351957751,1738861842352,-539.42,0.00014109,2]
[351957753,1738861842363,-500.0,0.00014109,2]
[351957755,1738861842376,-500.0,0.00014109,2]
[351957757,1738861842388,-548.40562885,0.00014109,2]
[351957759,1738861842398,-3060.32,0.00014109,2]
[351957762,1738861842417,-1332.48,0.00014109,2]
[351957765,1738861842428,-553.85,0.00014109,2]
[351957768,1738861842439,-825.04,0.00014109,2]
[351957772,1738861842449,-500.0,0.00014109,2]
[351957775,1738861842461,-892.32,0.00014109,2]
[351957778,1738861842473,-500.0,0.00014109,2]
[351957780,1738861842483,-500.0,0.00014109,2]
[351957782,1738861842495,-974.39,0.00014109,2]
[351957785,1738861842507,-2278.89,0.00014109,2]
[351957787,1738861842518,-500.0,0.00014109,2]
[351957789,1738861842529,-934.64,0.00014109,2]
[351957791,1738861842540,-500.0,0.00014109,2]
[351957793,1738861842551,-828.04,0.00014109,2]
[351957795,1738861842562,-1082.92,0.00014109,2]
[351957797,1738861842573,-1033.26,0.00014109,2]
[351957800,1738861842584,-500.0,0.00014109,2]
[351957802,1738861842595,-518.88,0.00014109,2]
[351957804,1738861842605,-4638.91,0.00014109,2]
[351957806,1738861842618,-27135.38,0.00014109,2]
[351957808,1738861842628,-13108.84,0.00014109,2]
[351957810,1738861842639,-1021.12,0.00014109,2]
[351957812,1738861842649,-500.0,0.00014109,2]
[351957814,1738861842660,-3170.82,0.00014109,2]
[351957816,1738861842670,-504.08,0.00014109,2]
[351957819,1738861842681,-1491.4,0.00014109,2]
[351957821,1738861842692,-1154.09,0.00014109,2]
[351957823,1738861842703,-1654.5,0.00014109,2]
[351957825,1738861842713,-500.0,0.00014109,2]
[351957827,1738861842724,-1115.28,0.00014109,2]
[351957829,1738861842735,-1583.48,0.00014109,2]
[351957831,1738861842746,-773.59,0.00014109,2]
[351957833,1738861842756,-615.24,0.00014109,2]
[351957835,1738861842766,-500.0,0.00014109,2]
[351957838,1738861842777,-500.0,0.00014109,2]
[351957840,1738861842787,-1025.7,0.00014109,2]
[351957842,1738861842798,-582.84,0.00014109,2]
[351957844,1738861842809,-1255.49,0.00014109,2]
[351957846,1738861842819,-500.0,0.00014109,2]
[351957848,1738861842830,-2719.61,0.00014109,2]
[351957850,1738861842841,-663.72,0.00014109,2]
[351957853,1738861842851,-1660.18,0.00014109,2]
[351957855,1738861842862,-2325.2,0.00014109,2]
[351957857,1738861842875,-507.86,0.00014109,2]
[351957859,1738861842885,-500.0,0.00014109,2]
[351957861,1738861842896,-1369.28,0.00014109,2]
[351957863,1738861842906,-6565.96,0.00014109,2]
[351957865,1738861842917,-643.63,0.00014109,2]
[351957867,1738861842927,-1567.27,0.00014109,2]
[351957870,1738861842939,-500.0,0.00014109,2]
[351957872,1738861842949,-500.0,0.00014109,2]
[351957874,1738861842960,-787.01,0.00014109,2]
[351957876,1738861842971,-892.16,0.00014109,2]
[351957878,1738861842981,-2615.86,0.00014109,2]
[351957880,1738861842992,-500.0,0.00014109,2]
[351957882,1738861843003,-2348.62,0.00014109,2]
[351957884,1738861843014,-157.0,0.00014152,2]
[351957887,1738861843026,-157.0,0.00014152,2]
[351957889,1738861843036,-157.0,0.00014152,2]
[351957891,1738861843046,-157.0,0.00014152,2]
[351957893,1738861843057,-157.0,0.00014152,2]
[351957895,1738861843067,-157.0,0.00014152,2]
[351957897,1738861843079,-157.0,0.00014152,2]
[351957899,1738861843090,-157.0,0.00014152,2]
[351957901,1738861843100,-157.0,0.00014152,2]
[351957904,1738861843111,-157.0,0.00014152,2]
[351957906,1738861843122,-157.0,0.00014152,2]
[351957908,1738861843132,-157.0,0.00014152,2]
[351957910,1738861843142,-157.0,0.00014152,2]
[351957912,1738861843153,-157.0,0.00014152,2]
[351957914,1738861843163,-157.0,0.00014152,2]
[351957916,1738861843173,-157.0,0.00014152,2]
[351957918,1738861843184,-157.0,0.00014152,2]
[351957920,1738861843195,-157.0,0.00014152,2]
[351957923,1738861843206,-157.0,0.00014152,2]
[351957925,1738861843217,-157.0,0.00014152,2]
[351957927,1738861843227,-177.19,0.00014152,2]
[351957929,1738861843238,-157.0,0.00014152,2]
[351957932,1738861843249,-157.0,0.00014152,2]
[351957935,1738861843259,-157.0,0.00014152,2]
[351957938,1738861843274,-157.0,0.00014152,2]
[351957942,1738861843284,-157.0,0.00014152,2]
[351957946,1738861843295,-157.0,0.00014152,2]
[351957948,1738861843307,-157.0,0.00014152,2]
[351957950,1738861843318,-157.0,0.00014152,2]
[351957952,1738861843329,-157.0,0.00014152,2]
[351957955,1738861843340,-157.0,0.00014152,2]
[351957957,1738861843351,-157.0,0.00014152,2]
[351957959,1738861843362,-157.0,0.00014152,2]
[351957961,1738861843373,-157.0,0.00014152,2]
[351957963,1738861843384,-157.0,0.00014152,2]
[351957965,1738861843394,-157.0,0.00014152,2]
[351957967,1738861843404,-157.0,0.00014152,2]
[351957969,1738861843414,-157.0,0.00014152,2]
[351957971,1738861843423,-157.0,0.00014152,2]
[351957973,1738861843433,-169.48,0.00014152,2]
[351957975,1738861843442,-396.0,0.00014177,2]
[351957977,1738861843452,-657.0,0.000142,5]
[351957979,1738861843461,-215.7447597,0.000142,2]
[351957981,1738861843471,-306.5547867,0.000142,2]
[351957983,1738861843480,-154.5349496,0.000142,2]
[351957985,1738861843489,-153.0,0.000142,2]
[351957987,1738861843499,-271.54850978,0.00014213,2]
[351957989,1738861843508,-150.0,0.00014218,2]
[351957991,1738861843518,-1975.0,0.00014218,2]
[351957993,1738861843527,-537.0,0.00014218,2]
[351957995,1738861843536,-2297.0,0.00014218,2]
[351957998,1738861843546,-755.15,0.00014246,2]
[351958000,1738861843556,-500.0,0.00014246,2]
[351958002,1738861843566,-536.44,0.00014246,2]
[351958004,1738861843575,-550.04,0.00014246,2]
[351958006,1738861843585,-630.21802614,0.00014246,2]
[351958008,1738861843594,-500.0,0.00014246,2]
[351958010,1738861843603,-704.62,0.00014246,2]
[351958032,1738861843817,-500.0,0.00014246,2]
[351958034,1738861843833,-500.0,0.00014246,2]
[351958037,1738861843844,-500.0,0.00014246,2]
[351958039,1738861843854,-583.96,0.00014246,2]
[351958041,1738861843864,-500.0,0.00014246,2]
[351958043,1738861843874,-500.0,0.00014246,2]
[351958045,1738861843883,-571.87,0.00014246,2]
[351958047,1738861843894,-500.0,0.00014246,2]
[351958049,1738861843903,-500.0,0.00014246,2]
[351958051,1738861843912,-1044.21,0.00014246,2]
[351958053,1738861843921,-817.62,0.00014246,2]
[351958055,1738861843931,-658.86,0.00014246,2]
[351958057,1738861843940,-1065.84,0.00014246,2]
[351958059,1738861843949,-500.0,0.00014246,2]
[351958061,1738861843958,-500.0,0.00014246,2]
[351958063,1738861843968,-1000.32,0.00014246,2]
[351958064,1738861843978,-500.0,0.00014246,2]
[351958066,1738861843987,-500.0,0.00014246,2]
[351958068,1738861843996,-775.27,0.00014246,2]
[351958070,1738861844006,-500.0,0.00014246,2]
[351958073,1738861844015,-500.0,0.00014246,2]
[351958074,1738861844025,-556.9,0.00014246,2]
[351958077,1738861844034,-937.72,0.00014246,2]
[351958079,1738861844044,-500.0,0.00014246,2]
[351958081,1738861844053,-1200.62,0.00014246,2]
[351958082,1738861844062,-599.28,0.00014246,2]
[351958084,1738861844071,-727.39,0.00014246,2]
[351958087,1738861844084,-500.0,0.00014246,2]
[351958088,1738861844094,-539.42,0.00014246,2]
[351958090,1738861844103,-500.0,0.00014246,2]
[351958093,1738861844112,-500.0,0.00014246,2]
[351958095,1738861844124,-3060.32,0.00014246,2]
[351958097,1738861844133,-1332.48,0.00014246,2]
[351958099,1738861844142,-553.85,0.00014246,2]
[351958101,1738861844151,-825.04,0.00014246,2]
[351958103,1738861844161,-500.0,0.00014246,2]
[351958105,1738861844171,-892.32,0.00014246,2]
[351958107,1738861844181,-500.0,0.00014246,2]
[351958109,1738861844190,-500.0,0.00014246,2]
[351958111,1738861844200,-974.39,0.00014246,2]
[351958113,1738861844210,-2278.89,0.00014246,2]
[351958115,1738861844218,-500.0,0.00014246,2]
[351958117,1738861844228,-934.64,0.00014246,2]
[351958119,1738861844237,-500.0,0.00014246,2]
[351958121,1738861844246,-828.04,0.00014246,2]
[351958123,1738861844256,-1082.92,0.00014246,2]
[351958125,1738861844267,-1033.26,0.00014246,2]
[351958127,1738861844277,-500.0,0.00014246,2]
[351958128,1738861844287,-518.88,0.00014246,2]
[351958130,1738861844296,-4638.91,0.00014246,2]
[351958132,1738861844307,-27135.38,0.00014246,2]
[351958134,1738861844316,-1832.69902948,0.00014246,2]
[351958137,1738861844335,-11276.14097052,0.00014246,2]
[351958139,1738861844345,-1021.12,0.00014246,2]
[351958141,1738861844354,-500.0,0.00014246,2]
[351958143,1738861844363,-3170.82,0.00014246,2]
[351958145,1738861844374,-504.08,0.00014246,2]
[351958147,1738861844383,-1491.4,0.00014246,2]
[351958149,1738861844393,-1154.09,0.00014246,2]
[351958151,1738861844403,-1654.5,0.00014246,2]
[351958153,1738861844413,-500.0,0.00014246,2]
[351958155,1738861844423,-1115.28,0.00014246,2]
[351958157,1738861844432,-1583.48,0.00014246,2]
[351958159,1738861844442,-773.59,0.00014246,2]
[351958161,1738861844451,-615.24,0.00014246,2]
[351958163,1738861844460,-500.0,0.00014246,2]
[351958165,1738861844470,-500.0,0.00014246,2]
[351958167,1738861844479,-1025.7,0.00014246,2]
[351958169,1738861844489,-582.84,0.00014246,2]
[351958171,1738861844499,-1255.49,0.00014246,2]
[351958173,1738861844509,-500.0,0.00014246,2]
[351958175,1738861844518,-2719.61,0.00014246,2]
[351958178,1738861844528,-1660.18,0.00014246,2]
[351958180,1738861844537,-612.65421932,0.00014246,2]
[351958193,1738861844658,-51.06578068,0.00014246,2]
[351958195,1738861844667,-1047.70879062,0.00014246,2]
[351958216,1738861844864,-1277.49120938,0.00014246,2]
[351958218,1738861844875,-507.86,0.00014246,2]
[351958220,1738861844884,-500.0,0.00014246,2]
[351958222,1738861844893,-420.74879061,0.00014246,2]
[351958224,1738861844905,-948.53120939,0.00014246,2]
[351958226,1738861844915,-6565.96,0.00014246,2]
[351958228,1738861844925,-1567.27,0.00014246,2]
[351958230,1738861844935,-643.63,0.00014246,2]
[351958232,1738861844945,-500.0,0.00014246,2]
[351958234,1738861844954,-500.0,0.00014246,2]
[351958236,1738861844965,-787.01,0.00014246,2]
[351958238,1738861844975,-892.16,0.00014246,2]
[351958240,1738861844985,-2615.86,0.00014246,2]
[351958243,1738861844995,-500.0,0.00014246,2]
[351958244,1738861845004,-2348.62,0.00014246,2]
[351958246,1738861845014,-153.0,0.00014247,2]
[351958248,1738861845023,-431.4328151,0.00014247,2]
[351958250,1738861845033,-153.0,0.00014247,2]
[351958252,1738861845043,-153.0,0.00014247,2]
[351958254,1738861845052,-153.0,0.00014247,2]
[351958257,1738861845062,-154.0,0.00014266,2]
[351958259,1738861845073,-154.0,0.00014266,2]
[351958261,1738861845082,-154.0,0.00014266,2]
[351958263,1738861845091,-154.0,0.00014266,2]
[351958265,1738861845101,-154.0,0.00014266,2]
[351958267,1738861845111,-154.0,0.00014266,2]
[351958269,1738861845120,-154.0,0.00014266,2]
[351958270,1738861845129,-170.0,0.00014266,2]
[351958273,1738861845139,-170.0,0.00014266,2]
[351958274,1738861845148,-170.0,0.00014266,2]
[351958276,1738861845157,-170.0,0.00014266,2]
[351958278,1738861845166,-172.86,0.00014266,2]
[351958280,1738861845175,-221.91693348,0.00014272,2]
[351958282,1738861845185,-500.1,0.00014295,2]